fUSD/lending_fUSD_20241125
["ID","MTS","AMOUNT","RATE_DAILY","PERIOD"]
[343231301,1732505462103,-500.0,0.00046848,2]
[343231302,1732505462112,-2726.86,0.00046848,2]
[343231303,1732505462121,-500.0,0.00046848,2]
[343231304,1732505462131,-500.0,0.00046848,2]
[343231305,1732505462140,-510.24106228,0.00046848,2]
[343231306,1732505462150,-500.0,0.00046848,2]
[343231307,1732505462159,-500.0,0.00046848,2]
[343231308,1732505462168,-500.0,0.00046848,2]
[343231309,1732505462178,-500.0,0.00046848,2]
[343231310,1732505462187,-5349.94,0.00046848,2]
[343231311,1732505462197,-500.0,0.00046848,2]
[343231312,1732505462206,-500.0,0.00046848,2]
[343231313,1732505462216,-500.0,0.00046848,2]
[343231314,1732505462225,-508.47954268,0.00046848,2]
[343231315,1732505462234,-500.0,0.00046848,2]
[343231316,1732505462244,-518.47476631,0.00046848,2]
[343231317,1732505462253,-563.05434808,0.00046848,2]
[343231318,1732505462263,-521.73923196,0.00046848,2]
[343231319,1732505462272,-506.70432072,0.00046848,2]
[343231320,1732505462281,-500.0,0.00046848,2]
[343231321,1732505462290,-500.0,0.00046848,2]
[343231322,1732505462300,-500.0,0.00046848,2]
[343231323,1732505462309,-526.97628503,0.00046848,2]
[343231324,1732505462318,-514.06901981,0.00046848,2]
[343231325,1732505462328,-513.95682097,0.00046848,2]
[343231326,1732505462337,-500.0,0.00046848,2]
[343231327,1732505462346,-521.53791841,0.00046848,2]
[343231328,1732505462355,-500.0,0.00046848,2]
[343231329,1732505462364,-500.0,0.00046848,2]
[343231330,1732505462374,-500.0,0.00046848,2]
[343231331,1732505462383,-500.0,0.00046848,2]
[343231332,1732505462392,-500.0,0.00046848,2]
[343231333,1732505462401,-500.0,0.00046848,2]
[343231334,1732505462410,-500.0,0.00046848,2]
[343231335,1732505462419,-517.89154692,0.00046848,2]
[343231336,1732505462428,-500.0,0.00046848,2]
[343231337,1732505462437,-3937.64,0.00046848,2]
[343231338,1732505462450,-1000.0,0.00046848,2]
[343231339,1732505462459,-518.1705103,0.00046848,2]
[343231340,1732505462468,-500.0,0.00046848,2]
[343231341,1732505462477,-508.34681968,0.00046848,2]
[343231342,1732505462487,-360.59918636,0.00046848,2]
[343231343,1732505462496,-500.0,0.00046848,2]
[343231344,1732505462506,-500.0,0.00046848,2]
[343231345,1732505462515,-500.0,0.00046848,2]
[343231346,1732505462524,-523.11871894,0.00046848,2]
[343231347,1732505462538,-500.0,0.00046848,2]
[343231348,1732505462548,-500.0,0.00046848,2]
[343231349,1732505462558,-500.0,0.00046848,2]
[343231350,1732505462567,-500.0,0.00046848,2]
[343231351,1732505462576,-520.03472054,0.00046848,2]
[343231352,1732505462586,-500.0,0.00046848,2]
[343231353,1732505462596,-500.0,0.00046848,2]
[343231354,1732505462606,-500.0,0.00046848,2]
[343231355,1732505462615,-599.48980678,0.00046848,2]
[343231356,1732505462625,-512.05565818,0.00046848,2]
[343231357,1732505462635,-500.0,0.00046848,2]
[343231358,1732505462644,-500.0,0.00046848,2]
[343231359,1732505462654,-506.28545468,0.00046848,2]
[343231360,1732505462664,-7665.13,0.00046848,2]
[343231361,1732505462673,-500.0,0.00046848,2]
[343231362,1732505462683,-500.0,0.00046848,2]
[343231363,1732505462694,-500.0,0.00046848,7]
[343231364,1732505462703,-500.0,0.00046848,2]
[343231365,1732505462712,-500.0,0.00046848,2]
[343231366,1732505462722,-438.03108965,0.00046848,2]
[343231367,1732505462732,-508.69108165,0.00046848,2]
[343231368,1732505462742,-500.0,0.00046848,2]
[343231369,1732505462751,-500.0,0.00046848,2]
[343231370,1732505462761,-500.0,0.00046848,2]
[343231371,1732505462770,-511.30691475,0.00046848,2]
[343231372,1732505462780,-515.04660023,0.00046848,2]
[343231373,1732505462790,-500.0,0.00046848,2]
[343231374,1732505462800,-563.4635013,0.00046848,2]
[343231375,1732505462810,-558.60161644,0.00046848,2]
[343231376,1732505462820,-500.0,0.00046848,2]
[343231377,1732505462830,-500.0,0.00046848,2]
[343231378,1732505462840,-509.86961,0.00046848,2]
[343231379,1732505462849,-500.0,0.00046848,2]
[343231380,1732505462859,-2883.94,0.00046848,2]
[343231381,1732505462869,-500.0,0.00046848,2]
[343231382,1732505462879,-534.09010624,0.00046848,2]
[343231383,1732505462889,-523.66041103,0.00046848,2]
[343231384,1732505462899,-500.0,0.00046848,2]
[343231385,1732505462908,-6403.31,0.00046848,2]
[343231386,1732505462918,-507.22702247,0.00046848,2]
[343231387,1732505462927,-519.87955627,0.00046848,2]
[343231388,1732505462939,-500.0,0.00046848,2]
[343231389,1732505462949,-8122.05,0.00046848,2]
[343231390,1732505462958,-500.0,0.00046848,2]
[343231391,1732505462968,-500.0,0.00046848,2]
[343231392,1732505462977,-511.73240012,0.00046848,2]
[343231393,1732505462987,-500.0,0.00046848,2]
[343231394,1732505462997,-500.0,0.00046848,2]
[343231395,1732505463006,-500.0,0.00046848,2]
[343231396,1732505463023,-500.0,0.00046848,2]
[343231397,1732505463033,-507.90559679,0.00046848,2]
[343231398,1732505463043,-500.0,0.00046848,2]
[343231399,1732505463053,-6360.9,0.00046848,2]
[343231400,1732505463063,-500.0,0.00046848,2]
[343231401,1732505463073,-500.0,0.00046848,2]
[343231402,1732505463083,-522.33232318,0.00046848,2]
[343231403,1732505463093,-435.78102547,0.00046848,2]
[343231404,1732505463104,-514.57066793,0.00046848,2]
[343231405,1732505463113,-511.02390363,0.00046848,2]
[343231406,1732505463123,-521.48080574,0.00046848,2]
[343231407,1732505463133,-500.0,0.00046848,2]
[343231408,1732505463143,-500.0,0.00046848,2]
[343231409,1732505463154,-500.0,0.00046848,2]
[343231410,1732505463164,-6232.08,0.00046848,2]
[343231411,1732505463174,-500.0,0.00046848,2]
[343231412,1732505463184,-500.0,0.00046848,2]
[343231413,1732505463198,-500.0,0.00046848,2]
[343231414,1732505463208,-500.0,0.00046848,2]
[343231415,1732505463218,-520.31894057,0.00046848,2]
[343231416,1732505463228,-506.79607036,0.00046848,2]
[343231417,1732505463237,-502.8487139,0.00046848,2]
[343231418,1732505463247,-500.0,0.00046848,2]
[343231419,1732505463257,-500.0,0.00046848,2]
[343231420,1732505463266,-500.0,0.00046848,2]
[343231421,1732505463275,-500.0,0.00046848,2]
[343231422,1732505463285,-500.0,0.00046848,2]
[343231423,1732505463296,-500.0,0.00046848,2]
[343231424,1732505463306,-210.57051702,0.00046848,2]
[343231425,1732505463316,-794.03,0.00046848,2]
[343231426,1732505463326,-500.0,0.00046848,2]
[343231427,1732505463335,-500.0,0.00046848,2]
[343231428,1732505463346,-822.7,0.00046848,2]
[343231429,1732505463355,-561.40624842,0.00046848,2]
[343231430,1732505463365,-5385.59,0.00046848,2]
[343231431,1732505463374,-500.0,0.00046848,2]
[343231432,1732505463383,-2162.9,0.00046848,2]
[343231433,1732505463393,-652.22,0.00046848,2]
[343231434,1732505463402,-512.27888549,0.00046848,2]
[343231435,1732505463413,-20291.32,0.00046848,2]
[343231436,1732505463423,-500.0,0.00046848,2]
[343231437,1732505463433,-514.56683789,0.00046848,2]
[343231438,1732505463446,-500.0,0.00046848,2]
[343231439,1732505463456,-500.0,0.00046848,2]
[343231440,1732505463466,-500.0,0.00046848,2]
[343231441,1732505463476,-500.0,0.00046848,2]
[343231442,1732505463486,-466.67174753,0.00046848,2]
[343231443,1732505463495,-500.0,0.00046848,2]
[343231444,1732505463506,-331.01862148,0.00046848,2]
[343231445,1732505463515,-879.1,0.00046848,2]
[343231446,1732505463525,-500.0,0.00046848,2]
[343231447,1732505463535,-558.48454098,0.00046848,2]
[343231448,1732505463545,-478.98889791,0.00046848,2]
[343231449,1732505463555,-500.0,0.00046848,2]
[343231450,1732505463565,-500.0,0.00046848,2]
[343231451,1732505463575,-500.0,0.00046848,2]
[343231452,1732505463584,-500.0,0.00046848,2]
[343231453,1732505463595,-717.59,0.00046848,2]
[343231454,1732505463605,-500.0,0.00046848,2]
[343231455,1732505463614,-500.0,0.00046848,2]
[343231456,1732505463626,-1993.5,0.00046848,2]
[343231457,1732505463636,-500.0,0.00046848,2]
[343231458,1732505463645,-780.93646468,0.00046849,30]
[343231459,1732505463656,-150.0,0.00046849,30]
[343231460,1732505463667,-500.0,0.00046849,30]
[343231461,1732505463677,-500.0,0.00046849,30]
[343231462,1732505463687,-500.0,0.00046849,30]
[343231463,1732505463698,-265.42981276,0.00046849,30]
[343231464,1732505463708,-500.0,0.00046849,30]
[343231465,1732505463717,-500.0,0.00046849,30]
[343231466,1732505463727,-1360.0,0.00046849,30]
[343231467,1732505463737,-680.73352249,0.00046859,30]
[343231468,1732505463747,-282.31446577,0.00046859,30]
[343231469,1732505463758,-212.56932501,0.00046859,30]
[343231470,1732505463768,-262.42209,0.0004686,34]
[343231471,1732505463778,-150.0,0.00046897,30]
[343231472,1732505463788,-500.0,0.000469,17]
[343231473,1732505463799,-500.0,0.00046906,2]
[343231474,1732505463809,-500.0,0.00046906,2]
[343231475,1732505463819,-500.0,0.00046906,2]
[343231476,1732505463829,-500.0,0.00046906,2]
[343231477,1732505463839,-500.0,0.00046906,2]
[343231478,1732505463849,-500.0,0.00046906,2]
[343231479,1732505463859,-680.73352249,0.00046908,30]
[343231480,1732505463869,-282.31446577,0.00046908,30]
[343231481,1732505463879,-212.56932501,0.00046908,30]
[343231482,1732505463889,-150.0,0.00046918,30]
[343231483,1732505463899,-202.0,0.0004692,30]
[343231484,1732505463909,-680.73352249,0.00046957,30]
[343231485,1732505463919,-282.31446577,0.00046957,30]
[343231486,1732505463929,-212.56932501,0.00046957,30]
[343231487,1732505463940,-150.0,0.00046975,30]
[343231488,1732505463950,-150.0,0.00046984,30]
[343231489,1732505463961,-460.42272414,0.00046985,7]
[343231490,1732505463971,-500.0,0.00046989,120]
[343231491,1732505463981,-2000.0,0.00046989,120]
[343231492,1732505463992,-512.137409,0.00046989,120]
[343231493,1732505464002,-500.0,0.00046989,120]
[343231494,1732505464013,-200.0,0.00046989,120]
[343231495,1732505464027,-23768.96571524,0.0004699,10]
[343231496,1732505464487,-500.0,0.000463,2]
[343231497,1732505464498,-500.0,0.00046846,2]
[343231498,1732505464508,-41607.49998649,0.0004699,10]
[343231499,1732505464521,-19567.14607611,0.0004699,10]
[343231500,1732505464531,-500.0,0.00046994,120]
[343231501,1732505464541,-53753.13698857,0.00047,30]
[343231502,1732505464550,-2443.0,0.00047,2]
[343231503,1732505464560,-1939.15226401,0.00047,30]
[343231504,1732505464570,-38567.1,0.00047,30]
[343231505,1732505464579,-48830.45999999,0.00047,30]
[343231506,1732505464589,-17000.0,0.00047,3]
[343231507,1732505464599,-5962.27942481,0.00047,30]
[343231508,1732505464608,-8031.87781538,0.00047,5]
[343231509,1732505464617,-5840.27008751,0.00047,30]
[343231510,1732505464627,-17067.36081569,0.00047,30]
[343231511,1732505464636,-5031.89,0.00047,68]
[343231512,1732505464645,-1454.70483174,0.00047,30]
[343231513,1732505464654,-15992.44833498,0.00047,30]
[343231514,1732505464663,-2207.96207063,0.00047,30]
[343231515,1732505464674,-13663.73820109,0.00047,120]
[343231516,1732505464683,-964.2154028,0.00047,30]
[343231517,1732505464695,-25830.98670111,0.00047,30]
[343231518,1732505464704,-262.47160431,0.00047,30]
[343231519,1732505464713,-1823.83461898,0.00047,30]
[343231520,1732505464723,-1800.0,0.00047,48]
[343231521,1732505464732,-46234.23,0.00047,2]
[343231522,1732505464742,-364.8779,0.00047,30]
[343231523,1732505464751,-680.73352249,0.00047006,30]
[343231524,1732505464761,-282.31446577,0.00047006,30]
[343231525,1732505464770,-212.56932501,0.00047006,30]
[343231526,1732505464780,-292.48334942,0.00047006,2]
[343231527,1732505464790,-500.0,0.00047006,2]
[343231528,1732505464799,-528.61964296,0.00047006,2]
[343231529,1732505464809,-175.65,0.00047015,2]
[343231530,1732505464818,-150.0,0.00047025,30]
[343231531,1732505464828,-150.0,0.00047053,30]
[343231532,1732505464837,-680.73352249,0.00047055,30]
[343231533,1732505464847,-282.31446577,0.00047055,30]
[343231534,1732505464856,-212.56932501,0.00047055,30]
[343231535,1732505464867,-680.73352249,0.00047103,30]
[343231536,1732505464876,-282.31446577,0.00047103,30]
[343231537,1732505464886,-212.56932501,0.00047103,30]
[343231538,1732505464895,-152.41415329,0.0004712,7]
[343231539,1732505464905,-1000.0,0.00047121,10]
[343231540,1732505464915,-1000.0,0.00047121,10]
[343231541,1732505464925,-694.55,0.00047121,120]
[343231542,1732505464935,-150.0,0.00047123,30]
[343231543,1732505464947,-500.0,0.00047123,30]
[343231544,1732505464957,-500.0,0.00047123,30]
[343231545,1732505464968,-691.26204239,0.00047123,30]
[343231546,1732505464977,-500.0,0.00047123,30]
[343231547,1732505464987,-500.0,0.00047123,30]
[343231548,1732505464996,-1360.0,0.00047123,30]
[343231549,1732505465006,-150.0,0.00047126,30]
[343231550,1732505465020,-150.0,0.00047131,30]
[343231551,1732505465029,-150.0,0.00047133,30]
[343231552,1732505465039,-680.73352249,0.00047152,30]
[343231553,1732505465049,-282.31446577,0.00047152,30]
[343231554,1732505465059,-212.56932501,0.00047152,30]
[343231555,1732505465069,-1469.99192341,0.000472,15]
[343231556,1732505465078,-680.73352249,0.00047201,30]
[343231557,1732505465089,-282.31446577,0.00047201,30]
[343231558,1732505465099,-212.56932501,0.00047201,30]
[343231559,1732505465109,-150.0,0.00047209,30]
[343231560,1732505465118,-200.0,0.00047231,7]
[343231561,1732505465127,-150.0,0.0004724,30]
[343231562,1732505465137,-680.73352249,0.0004725,30]
[343231563,1732505465147,-282.31446577,0.0004725,30]
[343231564,1732505465156,-212.56932501,0.0004725,30]
[343231565,1732505465166,-329.20430457,0.00047266,2]
[343231566,1732505465175,-150.0,0.00047268,30]
[343231567,1732505465185,-290.0,0.0004728,2]
[343231568,1732505465197,-150.0,0.00047287,30]
[343231569,1732505465206,-680.73352249,0.00047299,30]
[343231570,1732505465215,-282.31446577,0.00047299,30]
[343231571,1732505465225,-212.56932501,0.00047299,30]
[343231572,1732505465235,-689.54,0.000473,2]
[343231573,1732505465244,-1280.0,0.00047322,120]
[343231574,1732505465253,-170.802718,0.00047339,30]
[343231575,1732505465263,-166.955888,0.00047339,30]
[343231576,1732505465272,-680.73352249,0.00047347,30]
[343231577,1732505465281,-282.31446577,0.00047347,30]
[343231578,1732505465291,-212.56932501,0.00047347,30]
[343231579,1732505465300,-150.0,0.00047347,30]
[343231580,1732505465309,-150.0,0.00047365,30]
[343231581,1732505465319,-5006.85832,0.00047386,30]
[343231582,1732505465328,-332.90339029,0.00047394,2]
[343231583,1732505465338,-500.0,0.00047394,2]
[343231584,1732505465347,-1080.52,0.00047394,2]
[343231585,1732505465356,-2850.15262511,0.00047394,2]
[343231586,1732505465806,-248.26740643,0.00043462,2]
[343231587,1732505465815,-3418.3773647,0.000461,120]
[343231588,1732505465830,-1581.6226353,0.000461,120]
[343231589,1732505465840,-537.24296904,0.00046298,2]
[343231590,1732505465849,-8257.6194832,0.000463,22]
[343231591,1732505465860,-380.2532935,0.000463,22]
[343231592,1732505465995,-2657.09378072,0.000463,22]
[343231593,1732505466007,-625.8550001,0.000463,22]
[343231594,1732505466020,-2016.5,0.000463,22]
[343231595,1732505466032,-256.45423774,0.000463,22]
[343231596,1732505466044,-486.06072121,0.000463,22]
[343231597,1732505466055,-10693.49449016,0.000463,22]
[343231598,1732505466065,-151.0,0.00046575,7]
[343231599,1732505466075,-556.75438175,0.00046848,2]
[343231600,1732505466085,-170.28181822,0.00047265,28]
[343231601,1732505466095,-2172.95376679,0.00047394,2]
[343231602,1732505466106,-499.7582014,0.00047394,2]
[343231603,1732505466117,-883.0554067,0.00047394,2]
[343231604,1732505466127,-500.0,0.00047394,2]
[343231605,1732505466137,-500.0,0.00047394,2]
[343231606,1732505466146,-1423.86234751,0.00047394,2]
[343231607,1732505466158,-7863.45765249,0.00047394,2]
[343231608,1732505466167,-1096.54234751,0.00047394,2]
[343231609,1732505466178,-2603.69189403,0.00047394,2]
[343231610,1732505466206,-300.0,0.00047394,2]
[343231611,1732505466218,-887.73575846,0.00047394,2]
[343231612,1732505466228,-417.77183387,0.00047394,2]
[343231613,1732505466323,-101.92816613,0.00047394,2]
[343231614,1732505466332,-972.99683387,0.00047394,2]
[343231615,1732505466358,-5791.46316613,0.00047394,2]
[343231616,1732505466367,-624.55,0.00047394,2]
[343231617,1732505466376,-500.0,0.00047394,2]
[343231618,1732505466385,-500.0,0.00047394,2]
[343231619,1732505466395,-1869.86583851,0.00047394,2]
[343231620,1732505466406,-494.89745534,0.00047394,2]
[343231621,1732505466417,-25151.22444263,0.00047394,2]
[343231622,1732505466428,-2104.3639259,0.00047394,2]
[343231623,1732505466448,-2405.67500026,0.00047394,2]
[343231624,1732505466459,-4879.65758759,0.00047394,2]
[343231625,1732505466682,-1997.0,0.00045913,2]
[343231626,1732505466694,-500.0,0.000463,2]
[343231627,1732505466703,-500.0,0.00046848,2]
[343231628,1732505466713,-190.88732942,0.00047394,2]
[343231629,1732505466724,-522.01898272,0.00047394,2]
[343231630,1732505466743,-2554.40943763,0.00047394,2]
[343231631,1732505466753,-7573.22,0.00047394,2]
[343231632,1732505466762,-500.0,0.00047394,2]
[343231633,1732505466772,-6533.67,0.00047394,2]
[343231634,1732505466781,-7172.30611163,0.00047394,2]
[343231635,1732505466872,-549.55523239,0.00046298,2]
[343231636,1732505466881,-2832.03388837,0.00047394,2]
[343231637,1732505466891,-734.49,0.00047394,2]
[343231638,1732505466900,-500.0,0.00047394,2]
[343231639,1732505466910,-500.0,0.00047394,2]
[343231640,1732505466920,-500.0,0.00047394,2]
[343231641,1732505466930,-535.56877771,0.00047394,2]
[343231642,1732505466943,-138.58785485,0.00047394,2]
[343231649,1732506148178,310.0859914,0.00039,3]
[343231653,1732506632130,-156.18,0.00041096,2]
[343231656,1732506632140,-1517.37007013,0.00042885,7]
[343231657,1732506632149,-504.66,0.00043019,2]
[343231659,1732506632160,-160.17,0.00044791,2]
[343231661,1732506632169,-250.0,0.00044833,2]
[343231663,1732506632179,-1000.0,0.00044936,2]
[343231665,1732506632189,-250.0,0.00044956,120]
[343231667,1732506632200,-529.54,0.00044978,2]
[343231669,1732506632210,-155.4,0.00044991,120]
[343231671,1732506632220,-150.0,0.00045,120]
[343231673,1732506632230,-176.04,0.00045025,120]
[343231675,1732506632239,-175.65,0.00045103,2]
[343231677,1732506632249,-500.21,0.00045157,2]
[343231679,1732506632258,-248.0,0.00045178,2]
[343231681,1732506632268,-250.0,0.00045258,120]
[343231683,1732506632278,-166.47,0.00045268,2]
[343231685,1732506632288,-504.66,0.00045283,2]
[343231687,1732506632297,-159.57,0.00045331,2]
[343231688,1732506632307,-203.0,0.0004576,30]
[343231689,1732506632316,-217.0,0.0004576,30]
[343231690,1732506632325,-500.0,0.00045898,120]
[343231691,1732506632335,-5000.0,0.00045999,120]
[343231692,1732506632344,-881.9951541,0.00045999,15]
[343231693,1732506632353,-170.28181822,0.00045999,28]
[343231694,1732506632364,-329.20430457,0.00046001,2]
[343231695,1732506632376,-827.586,0.00046022,75]
[343231696,1732506632385,-565.0,0.00046022,2]
[343231697,1732506632395,-1628.179,0.00046022,2]
[343231699,1732506632404,-175.27451392,0.00046022,2]
[343231701,1732506632417,-457.29748608,0.00046022,2]
[343231703,1732506632427,-1262.0,0.00046022,2]
[343231705,1732506632436,-816.0,0.00046022,2]
[343231707,1732506632446,-3753.0,0.00046022,2]
[343231709,1732506632456,-4396.0,0.00046049,117]
[343231711,1732506632465,-500.0,0.00046073,2]
[343231713,1732506632475,-500.0,0.00046073,10]
[343231715,1732506632484,-500.0,0.00046098,2]
[343231717,1732506632493,-500.0,0.00046098,2]
[343231719,1732506632502,-500.0,0.00046098,2]
[343231721,1732506632511,-365.72842393,0.00046098,2]
[343231723,1732506632521,-500.0,0.00046098,2]
[343231725,1732506632530,-500.0,0.00046098,2]
[343231727,1732506632539,-500.0,0.00046098,2]
[343231729,1732506632548,-500.0,0.00046098,2]
[343231731,1732506632557,-500.0,0.00046098,2]
[343231733,1732506632567,-151.01881044,0.00046098,2]
[343231735,1732506632576,-500.0,0.00046098,2]
[343231736,1732506632586,-539.06609774,0.00046098,2]
[343231737,1732506632596,-500.0,0.00046098,2]
[343231738,1732506632605,-500.0,0.00046098,2]
[343231739,1732506632614,-500.0,0.00046098,2]
[343231740,1732506632624,-528.38739213,0.00046098,2]
[343231741,1732506632633,-405.01258641,0.00046098,2]
[343231742,1732506632643,-510.38046658,0.00046098,2]
[343231743,1732506632652,-194.5592913,0.00046098,2]
[343231744,1732506632661,-582.2547699,0.00046098,2]
[343231745,1732506632672,-685.8,0.00046098,2]
[343231746,1732506632681,-4901.43833836,0.00046098,2]
[343231747,1732506632693,-501.37912206,0.00046098,2]
[343231749,1732506638035,-202.36253958,0.00046098,2]
[343231750,1732506638044,-60.62679134,0.00046098,2]
[343231751,1732506639759,-439.37320866,0.00046098,2]
[343231752,1732506639768,-500.0,0.00046098,2]
[343231753,1732506639778,-945.46,0.00046098,2]
[343231754,1732506639787,-4276.97,0.00046098,2]
[343231755,1732506639797,-500.0,0.00046098,2]
[343231756,1732506639807,-5918.9,0.00046098,2]
[343231757,1732506639816,-8126.4,0.00046098,2]
[343231758,1732506639826,-500.0,0.00046098,2]
[343231759,1732506639835,-500.0,0.00046098,2]
[343231760,1732506639844,-546.48,0.00046098,2]
[343231761,1732506639854,-500.0,0.00046098,2]
[343231762,1732506639864,-6626.56,0.00046098,2]
[343231763,1732506639874,-17771.85679134,0.00046098,2]
[343231764,1732506639890,-17379.52320866,0.00046098,2]
[343231765,1732506639899,-500.0,0.00046098,2]
[343231766,1732506639909,-3871.98258589,0.00046098,2]
[343231767,1732506639921,-629.67999965,0.00046098,2]
[343231768,1732506639932,-293.30850003,0.00046098,2]
[343231769,1732506639944,-776.2720024,0.00046098,2]
[343231770,1732506639955,-3182.55691203,0.00046098,2]
[343231771,1732506639964,-1129.91188297,0.00046098,2]
[343231772,1732506639976,-998.45,0.00046098,2]
[343231774,1732506643019,-2432.0,0.000456,120]
[343231778,1732506645587,-646.85139686,0.000456,120]
[343231782,1732506645830,-671.13860314,0.000456,120]
[343231783,1732506645840,-63.47620461,0.000456,120]
[343231796,1732507350670,381.0,0.000247,2]
[343231797,1732507351597,343.0,0.000247,2]
[343231800,1732507634007,2406.31095892,0.000401,30]
[343231818,1732507831679,-158.25,0.00041096,2]
[343231819,1732507831689,-562.39,0.00042229,2]
[343231820,1732507831699,-160.17,0.0004353,2]
[343231821,1732507831709,-550.0,0.00043612,5]
[343231822,1732507831718,-23900.0,0.00043613,2]
[343231823,1732507831727,-1105.409,0.00043835,2]
[343231824,1732507831737,-170.28181822,0.000439,28]
[343231825,1732507831747,-329.20430457,0.000439,2]
[343231826,1732507831760,-500.0,0.00043973,2]
[343231827,1732507831770,-500.0,0.00043973,10]
[343231828,1732507831781,-325.52530264,0.00043999,31]
[343231829,1732507831792,-500.0,0.00043999,2]
[343231830,1732507831803,-906.07,0.00043999,2]
[343231831,1732507831812,-500.0,0.00043999,2]
[343231832,1732507831822,-7787.8,0.00043999,2]
[343231833,1732507831832,-500.0,0.00043999,2]
[343231834,1732507831844,-523.71,0.00043999,2]
[343231835,1732507831855,-500.0,0.00043999,2]
[343231836,1732507831864,-33686.74,0.00043999,2]
[343231837,1732507831874,-500.0,0.00043999,2]
[343231838,1732507831884,-5628.28,0.00043999,2]
[343231839,1732507831894,-500.0,0.00043999,2]
[343231840,1732507831904,-500.0,0.00043999,2]
[343231841,1732507831916,-1426.56,0.00043999,2]
[343231842,1732507831926,-500.0,0.00043999,2]
[343231843,1732507831936,-500.0,0.00043999,2]
[343231844,1732507831946,-642.68,0.00043999,2]
[343231845,1732507831955,-691921.97900956,0.00044,12]
[343231846,1732507831965,-12686.66550332,0.00044,22]
[343231847,1732507831975,-186099.93945863,0.00044,2]
[343231848,1732507831985,-31736.83147798,0.00044,2]
[343231849,1732507832053,-17995.72781836,0.00044,2]
[343231850,1732507832063,-10542.08320006,0.00044,2]
[343231851,1732507832074,-29577.41652645,0.00044,2]
[343231852,1732507832092,-39199.11875258,0.00044,2]
[343231853,1732507835439,-500.0,0.00043999,2]
[343231854,1732507835450,-40907.64855675,0.00044,2]
[343231855,1732507835460,-250.0,0.00044253,120]
[343231856,1732507835469,-500.0,0.00044317,2]
[343231857,1732507835479,-1000.0,0.00044413,2]
[343231858,1732507835489,-211.16,0.00044423,120]
[343231859,1732507835498,-250.0,0.0004443,120]
[343231860,1732507835508,-169.58,0.00044472,2]
[343231861,1732507835517,-562.39,0.00044493,2]
[343231862,1732507835527,-598.91528671,0.00044521,2]
[343231863,1732507835537,-811.02613995,0.00044521,10]
[343231864,1732507835547,-500.0,0.00044547,2]
[343231865,1732507835556,-906.07,0.00044547,2]
[343231866,1732507835566,-500.0,0.00044547,2]
[343231867,1732507835576,-7787.8,0.00044547,2]
[343231868,1732507835586,-500.0,0.00044547,2]
[343231869,1732507835595,-523.71,0.00044547,2]
[343231870,1732507835605,-500.0,0.00044547,2]
[343231871,1732507835615,-33686.74,0.00044547,2]
[343231872,1732507835624,-500.0,0.00044547,2]
[343231873,1732507835634,-5628.28,0.00044547,2]
[343231874,1732507835644,-646.47001071,0.00044547,2]
[343231875,1732507835654,-500.0,0.00044547,2]
[343231876,1732507835664,-1426.56,0.00044547,2]
[343231877,1732507835677,-500.000001,0.00044547,2]
[343231878,1732507835686,-500.0,0.00044547,2]
[343231879,1732507835695,-642.68,0.00044547,2]
[343231880,1732507835706,-500.0,0.00044547,2]
[343231881,1732507835716,-164.55,0.000447,2]
[343231882,1732507835726,-25390.08,0.00044866,2]
[343231883,1732507835736,-30680.81,0.00044866,2]
[343231885,1732507835745,-3305.37,0.00044867,2]